bitfinex/quotes_SOLUSD_20241218
["timestamp","ask_amount","ask_price","bid_price","bid_amount"]
[1734535600323,22.15853313,217.69,217.63,22.72469993]
[1734535600860,15.4,217.66,217.63,0.5661668]
[1734535601025,22.15853313,217.65,217.63,0.5661668]
[1734535601367,23.30713313,217.64,217.63,0.5661668]
[1734535602328,47.08401713,217.64,217.63,6.68e-05]
[1734535602527,23.30713313,217.64,217.63,6.68e-05]
[1734535603030,37.55853313,217.66,217.63,6.68e-05]
[1734535603228,22.15853313,217.64,217.63,6.68e-05]
[1734535603449,15.4,217.66,217.63,6.68e-05]
[1734535603696,22.15853313,217.68,217.63,6.68e-05]
[1734535603829,22.15853313,217.7,217.63,22.15859993]
[1734535604029,15.4,217.71,217.64,22.15853313]
[1734535604030,37.55853313,217.71,217.64,22.15853313]
[1734535604230,22.15853313,217.7,217.63,22.15859993]
[1734535605524,22.15853313,217.69,217.63,6.68e-05]
[1734535605725,22.15853313,217.7,217.63,22.15859993]
[1734535605948,37.55853313,217.71,217.64,22.15853313]
[1734535606135,22.15853313,217.69,217.63,6.68e-05]
[1734535607058,22.15853313,217.7,217.63,6.68e-05]
[1734535607242,22.15853313,217.67,217.63,6.68e-05]
[1734535607453,22.15853313,217.66,217.63,6.68e-05]
[1734535607835,22.15853313,217.67,217.63,6.68e-05]
[1734535608356,22.15853313,217.69,217.63,6.68e-05]
[1734535609369,22.15853313,217.65,217.63,6.68e-05]
[1734535609846,22.15853313,217.64,217.63,6.68e-05]
[1734535610438,45.93541713,217.64,217.63,6.68e-05]
[1734535610841,47.44241713,217.64,217.63,6.68e-05]
[1734535611252,47.44241713,217.64,217.52,10.0]
[1734535611253,20.0,217.61,217.52,10.0]
[1734535611451,78.59101713,217.64,217.52,10.0]
[1734535611452,23.776884,217.59,217.52,10.0]
[1734535611653,22.15853313,217.55,217.52,10.0]
[1734535612036,22.15853313,217.59,217.52,32.15853313]
[1734535612239,22.15853313,217.61,217.52,10.0]
[1734535612537,43.776884,217.63,217.52,10.0]
[1734535612753,23.776884,217.61,217.52,10.0]
[1734535613345,1.1487,217.62,217.52,10.0]
[1734535613541,22.15853313,217.57,217.52,10.0]
[1734535614153,22.15853313,217.58,217.52,10.0]
[1734535614464,22.15853313,217.57,217.52,10.0]
[1734535615440,22.15853313,217.58,217.52,10.0]
[1734535615762,22.15853313,217.63,217.56,22.15853313]
[1734535616066,22.15853313,217.61,217.54,22.15853313]
[1734535616441,22.15853313,217.6,217.53,22.15853313]
[1734535616643,22.15853313,217.59,217.52,22.15853313]
[1734535616841,22.15853313,217.58,217.51,22.15853313]
[1734535617139,22.15853313,217.59,217.52,22.15853313]
[1734535617341,15.4,217.6,217.55,22.15853313]
[1734535617944,22.15853313,217.64,217.57,22.15853313]
[1734535618141,22.15853313,217.65,217.57,22.15853313]
[1734535618543,22.15853313,217.64,217.57,22.15853313]
[1734535619071,22.15853313,217.65,217.57,22.15853313]
[1734535619565,37.55853313,217.69,217.61,22.15853313]
[1734535619755,22.15853313,217.66,217.59,22.15853313]
[1734535620544,22.15853313,217.67,217.6,22.15853313]
[1734535620741,22.15853313,217.68,217.61,22.15853313]
[1734535621767,16.5484,217.69,217.55,1.5306]
[1734535621768,22.15853313,217.67,217.6,22.15853313]
[1734535622073,22.15853313,217.65,217.58,22.15853313]
[1734535622237,22.15853313,217.66,217.59,22.15853313]
[1734535622451,22.15853313,217.67,217.6,22.15853313]
[1734535622650,37.55853313,217.68,217.61,22.15853313]
[1734535623383,15.4,217.68,217.61,22.15853313]
[1734535623587,15.4,217.68,217.62,22.15853313]
[1734535623754,22.15853313,217.69,217.62,22.15853313]
[1734535624083,37.55853313,217.75,217.68,22.15853313]
[1734535624311,22.15853313,217.76,217.68,22.15853313]
[1734535624463,15.4,217.76,217.71,22.15853313]
[1734535624797,22.15853313,217.78,217.64,8.0347]
[1734535624798,15.4,217.79,217.73,22.15853313]
[1734535625307,22.15853313,217.78,217.71,22.15853313]
[1734535625597,22.15853313,217.75,217.67,42.15853313]
[1734535625769,22.15853313,217.74,217.67,22.15853313]
[1734535626086,22.15853313,217.72,217.65,22.15853313]
[1734535626260,22.15853313,217.73,217.65,22.15853313]
[1734535626460,37.55853313,217.75,217.67,22.15853313]
[1734535626677,22.15853313,217.74,217.67,22.15853313]
[1734535627267,37.55853313,217.75,217.67,22.15853313]
[1734535627584,22.15853313,217.76,217.69,22.15853313]
[1734535627760,22.15853313,217.77,217.7,22.15853313]
[1734535627963,37.55853313,217.79,217.71,22.15853313]
[1734535629082,22.15853313,217.78,217.71,22.15853313]
[1734535629283,22.15853313,217.76,217.69,22.15853313]
[1734535629587,15.4,217.78,217.65,22.15853313]
[1734535629588,22.15853313,217.72,217.65,22.15853313]
[1734535629810,37.55853313,217.73,217.66,22.15853313]
[1734535629955,15.4,217.73,217.68,22.15853313]
[1734535630159,15.4,217.73,217.67,22.15853313]
[1734535631489,15.4,217.73,217.66,22.15853313]
[1734535631672,37.55853313,217.73,217.66,22.15853313]
[1734535631984,22.15853313,217.8,217.64,22.15853313]
[1734535631985,22.15853313,217.71,217.64,22.15853313]
[1734535632191,15.4,217.72,217.67,22.15853313]
[1734535632568,22.15853313,217.75,217.68,22.15853313]
[1734535632790,22.15853313,217.74,217.67,22.15853313]
[1734535633991,15.4,217.8,217.7,22.15853313]
[1734535634289,15.4,217.8,217.62,23.902374]
[1734535634290,22.15853313,217.79,217.72,22.15853313]
[1734535634987,22.15853313,217.83,217.76,22.15853313]
[1734535635182,15.4,217.85,217.7,1.5656]
[1734535635183,22.15853313,217.82,217.75,22.15853313]
[1734535635787,22.15853313,217.82,217.74,22.15853313]
[1734535635967,22.15853313,217.8,217.73,22.15853313]
[1734535636475,22.15853313,217.81,217.74,22.15853313]
[1734535636674,22.15853313,217.8,217.73,22.15853313]
[1734535638378,22.15853313,217.81,217.74,22.15853313]
[1734535638783,15.4,217.83,217.76,22.15853313]
[1734535638784,37.55853313,217.83,217.76,22.15853313]
[1734535638989,15.4,217.83,217.76,22.15853313]
[1734535639178,22.15853313,217.81,217.74,22.15853313]
[1734535639372,22.15853313,217.81,217.73,22.15853313]
[1734535639892,22.15853313,217.77,217.71,6.2658]
[1734535640067,22.15853313,217.78,217.71,22.15853313]
[1734535640419,22.15853313,217.74,217.67,22.15853313]
[1734535640712,37.55853313,217.73,217.66,22.15853313]
[1734535640912,15.4,217.72,217.66,22.15853313]
[1734535641986,15.4,217.79,217.7,22.15853313]
[1734535642200,16.45250573,217.89,217.61,0.12549]
[1734535642201,22.15853313,217.82,217.74,22.15853313]
[1734535642577,15.4,217.81,217.68,0.12549]
[1734535642800,22.15853313,217.79,217.68,23.902374]
[1734535643001,22.15853313,217.79,217.72,22.15853313]
[1734535643792,22.15853313,217.8,217.73,22.15853313]
[1734535643994,22.15853313,217.82,217.75,22.15853313]
[1734535644515,22.15853313,217.8,217.73,22.15853313]
[1734535645016,22.15853313,217.82,217.75,22.15853313]
[1734535645523,37.55853313,217.84,217.76,22.15853313]
[1734535645687,37.55853313,217.86,217.79,22.15853313]
[1734535645893,22.15853313,217.86,217.78,22.15853313]
[1734535646303,22.15853313,217.86,217.79,22.15853313]
[1734535647032,22.15853313,217.84,217.77,22.15853313]
[1734535647184,22.15853313,217.85,217.77,22.15853313]
[1734535648289,22.15853313,217.85,217.78,22.15853313]
[1734535648496,15.4,217.97,217.84,22.28402313]
[1734535648705,15.4,217.96,217.9,22.15853313]
[1734535649005,15.4,217.95,217.89,22.15853313]
[1734535649194,15.4,217.94,217.88,22.15853313]
[1734535649595,15.4,217.94,217.83,6.5492]
[1734535649596,15.4,217.95,217.89,22.15853313]
[1734535649812,15.4,217.98,217.91,22.15853313]
[1734535649990,15.4,217.99,217.92,22.15853313]
[1734535650318,15.4,218.03,217.97,22.15853313]
[1734535650495,15.4,218.04,217.99,22.15853313]
[1734535650694,15.4,218.08,218.0,22.15853313]
[1734535650899,15.4,218.08,218.01,22.15853313]
[1734535651099,15.4,218.07,218.01,22.15853313]
[1734535651298,22.15853313,218.09,218.01,22.15853313]
[1734535651299,15.4,218.08,218.01,22.15853313]
[1734535651489,15.4,218.07,218.02,22.15853313]
[1734535651907,15.4,218.07,218.03,22.15853313]
[1734535652107,22.15853313,218.09,218.02,22.15853313]
[1734535652423,22.15853313,218.11,218.03,22.15853313]
[1734535652720,15.4,218.15,218.09,22.15853313]
[1734535652925,15.4,218.15,217.98,0.68793748]
[1734535652926,22.15853313,218.14,218.07,22.15853313]
[1734535653121,37.55853313,218.13,218.05,22.15853313]
[1734535653327,22.15853313,218.12,218.05,22.15853313]
[1734535653615,37.55853313,218.13,218.05,22.15853313]
[1734535653829,22.15853313,218.15,218.08,22.15853313]
[1734535653994,37.55853313,218.17,218.11,22.15853313]
[1734535654196,15.4,218.17,218.11,22.15853313]
[1734535654401,22.72469993,218.18,218.08,22.15853313]
[1734535654402,22.15853313,218.15,218.08,22.15853313]
[1734535654601,37.55853313,218.16,218.08,22.15853313]
[1734535655412,15.4,218.15,218.09,22.15853313]
[1734535655711,15.4,218.15,218.08,22.15853313]
[1734535655918,15.4,218.12,218.05,22.15853313]
[1734535656326,15.4,218.12,218.06,22.15853313]
[1734535656503,15.4,218.12,218.05,22.15853313]
[1734535656702,37.55853313,218.12,218.05,22.15853313]
[1734535656904,15.4,218.12,218.05,22.15853313]
[1734535657323,37.55853313,218.12,218.05,22.15853313]
[1734535657510,37.55853313,218.09,218.02,22.15853313]
[1734535657830,15.4,218.08,218.01,22.15853313]
[1734535658031,15.4,218.08,218.02,22.15853313]
[1734535658822,22.15853313,218.07,218.0,22.15853313]
[1734535659023,22.15853313,218.07,217.99,22.15853313]
[1734535659410,37.55853313,218.09,218.02,22.15853313]
[1734535659729,37.55853313,218.08,218.01,22.15853313]
[1734535659928,22.15853313,218.09,218.02,22.15853313]
[1734535660127,22.15853313,218.12,218.04,22.15853313]
[1734535660335,37.55853313,218.08,218.01,22.15853313]
[1734535660504,22.15853313,218.07,218.0,22.15853313]
[1734535660831,22.15853313,218.06,217.99,22.15853313]
[1734535661208,15.4,218.08,218.05,22.15853313]
[1734535661405,15.4,218.1,218.04,22.15853313]
[1734535661606,22.15853313,218.11,218.04,22.15853313]
[1734535661805,37.55853313,218.1,218.03,22.15853313]
[1734535662929,15.4,218.1,218.03,22.15853313]
[1734535663246,15.4,218.1,218.04,22.15853313]
[1734535663818,37.55853313,218.12,218.05,22.15853313]
[1734535664117,22.15853313,218.11,218.04,22.15853313]
[1734535665618,37.55853313,218.12,218.05,22.15853313]
[1734535665830,22.15853313,218.11,218.03,22.15853313]
[1734535666132,22.15853313,218.11,218.04,22.15853313]
[1734535666733,37.55853313,218.12,218.05,22.15853313]
[1734535668035,37.55853313,218.12,218.04,22.15853313]
[1734535668236,22.15853313,218.11,218.04,22.15853313]
[1734535669330,22.15853313,218.11,218.03,22.15853313]
[1734535669535,22.15853313,218.11,218.04,22.15853313]
[1734535670243,37.55853313,218.12,218.05,22.15853313]
[1734535670414,22.15853313,218.11,218.03,22.15853313]
[1734535670615,22.15853313,218.11,218.04,22.15853313]
[1734535671041,37.55853313,218.12,218.05,22.15853313]
[1734535671269,22.15853313,218.11,218.04,22.15853313]
[1734535672040,37.55853313,218.12,218.05,22.15853313]
[1734535672210,15.4,218.16,218.1,22.15853313]
[1734535672616,15.4,218.14,218.07,22.15853313]
[1734535673034,22.15853313,218.15,218.08,22.15853313]
[1734535673842,37.55853313,218.17,218.1,22.15853313]
[1734535674048,37.55853313,218.17,218.09,22.15853313]
[1734535674626,22.72469993,218.18,218.11,22.15853313]
[1734535674840,0.5661668,218.18,218.14,22.15853313]
[1734535675342,0.5661668,218.18,218.13,22.15853313]
[1734535675537,0.5661668,218.18,218.15,22.15853313]
[1734535676333,0.5661668,218.18,218.09,0.68758163]
[1734535676334,0.5661668,218.18,218.14,22.15853313]
[1734535676653,0.5661668,218.18,218.16,22.15853313]
[1734535677930,0.5661668,218.18,218.15,22.15853313]
[1734535679146,22.15853313,218.17,218.1,22.15853313]
[1734535679455,0.5661668,218.18,218.07,8.1891]
[1734535679456,22.15853313,218.16,218.09,22.15853313]
[1734535679817,22.15853313,218.14,218.06,22.15853313]
[1734535680328,22.15853313,218.14,218.04,13.87678269]
[1734535680329,13.87678269,218.11,218.04,13.87678269]
[1734535680526,29.27678269,218.11,218.04,13.87678269]
[1734535681030,13.87678269,218.1,218.03,13.87678269]
[1734535681349,6.6122,218.15,218.04,13.87678269]
[1734535681350,13.87678269,218.11,218.04,13.87678269]
[1734535681539,29.27678269,218.12,218.04,13.87678269]
[1734535681838,15.4,218.14,218.07,13.87678269]
[1734535682016,15.4,218.14,218.07,22.19665028]
[1734535682743,37.59665028,218.14,218.07,22.19665028]
[1734535682921,37.59665028,218.11,218.03,22.19665028]
[1734535683114,37.59665028,218.11,217.98,2.73856647]
[1734535683115,15.4,218.11,218.04,22.19665028]
[1734535683314,37.59665028,218.12,218.05,22.19665028]
[1734535683529,22.19665028,218.13,218.06,22.19665028]
[1734535684052,22.19665028,218.15,218.08,22.19665028]
[1734535684349,22.19665028,218.17,218.1,22.19665028]
[1734535684836,22.19665028,218.17,218.09,22.19665028]
[1734535685042,22.19665028,218.16,218.09,22.19665028]
[1734535685429,22.19665028,218.14,218.07,22.19665028]
[1734535685634,22.19665028,218.12,218.04,22.19665028]
[1734535685838,22.19665028,218.12,218.05,22.19665028]
[1734535686447,22.19665028,218.12,218.04,22.19665028]
[1734535686644,22.19665028,218.12,218.05,22.19665028]
[1734535686819,22.19665028,218.13,218.06,22.19665028]
[1734535687227,22.19665028,218.13,218.05,22.19665028]
[1734535687751,22.19665028,218.1,218.03,22.19665028]
[1734535687930,22.19665028,218.09,218.02,22.19665028]
[1734535688130,22.19665028,218.1,218.03,22.19665028]
[1734535688358,22.19665028,218.09,218.02,22.19665028]
[1734535688552,22.19665028,218.11,218.03,22.19665028]
[1734535688853,22.19665028,218.16,218.08,22.19665028]
[1734535689041,22.19665028,218.16,218.09,22.19665028]
[1734535689350,22.19665028,218.13,218.06,22.19665028]
[1734535691354,15.4,218.15,218.09,22.19665028]
[1734535691733,22.19665028,218.17,218.09,22.19665028]
[1734535691939,22.19665028,218.15,218.07,22.19665028]
[1734535692553,22.19665028,218.11,218.04,22.19665028]
[1734535692735,22.19665028,218.11,217.97,2.25949357]
[1734535692736,22.19665028,218.12,218.05,22.19665028]
[1734535692936,22.19665028,218.14,218.07,22.19665028]
[1734535693138,37.59665028,218.15,218.07,22.19665028]
[1734535693538,37.59665028,218.15,218.08,22.19665028]
[1734535694160,22.19665028,218.14,218.04,0.12549]
[1734535694359,22.19665028,218.14,218.07,22.19665028]
[1734535694746,37.59665028,218.15,218.07,22.19665028]
[1734535694943,15.4,218.15,218.08,22.19665028]
[1734535695152,15.4,218.15,218.06,22.19665028]
[1734535695153,22.19665028,218.13,218.06,22.19665028]
[1734535695357,22.19665028,218.14,218.07,22.19665028]
[1734535696037,22.19665028,218.12,218.05,22.19665028]
[1734535696245,22.19665028,218.11,218.04,22.19665028]
[1734535696456,22.19665028,218.12,218.04,22.19665028]
[1734535696955,22.19665028,218.12,218.05,22.19665028]
[1734535697265,37.59665028,218.13,218.06,22.19665028]
[1734535697637,37.59665028,218.13,218.05,22.19665028]
[1734535698248,22.19665028,218.12,218.05,22.19665028]
[1734535698749,37.59665028,218.13,218.05,22.19665028]
[1734535699056,23.34265028,218.14,218.06,22.19665028]
[1734535699257,37.59665028,218.17,218.09,22.19665028]
[1734535699442,37.59665028,218.17,218.1,22.19665028]
[1734535699642,15.4,218.17,218.1,22.19665028]
[1734535699947,0.5661668,218.18,218.11,22.19665028]
[1734535700146,22.76281708,218.18,218.11,22.19665028]
[1734535700753,22.76281708,218.18,218.08,22.19665028]
[1734535700754,22.19665028,218.16,218.08,22.19665028]
[1734535700971,22.19665028,218.17,218.09,22.19665028]
[1734535702040,22.76281708,218.18,218.1,22.19665028]
[1734535702664,22.76281708,218.18,218.11,22.19665028]
[1734535702665,0.5661668,218.18,218.11,22.19665028]
[1734535702853,0.5661668,218.18,218.06,0.12549]
[1734535702854,0.5661668,218.18,218.13,22.19665028]
[1734535703170,0.5661668,218.18,218.16,22.19665028]
[1734535703943,0.5661668,218.18,218.11,0.6874811]
[1734535704149,0.5661668,218.18,218.15,13.86242926]
[1734535705065,0.5661668,218.18,218.14,13.86242926]
[1734535705273,0.5661668,218.18,218.12,13.86242926]
[1734535705437,0.5661668,218.18,218.08,8.83227808]
[1734535705644,0.5661668,218.18,218.13,13.86242926]
[1734535706354,0.5661668,218.18,218.12,13.86242926]
[1734535707240,0.5661668,218.18,218.14,13.86242926]
[1734535707444,0.5661668,218.18,218.13,13.86242926]
[1734535708253,0.5661668,218.18,218.15,13.86242926]
[1734535709446,0.5661668,218.18,218.17,13.86242926]
[1734535709876,0.5661668,218.18,218.17,13.98791926]
[1734535710182,0.5661668,218.18,218.17,37.76480326]
[1734535710741,0.5661668,218.18,218.17,45.32340326]
[1734535711463,0.5661668,218.18,218.17,46.01057394]
[1734535714873,0.5661668,218.18,218.17,13.86242926]
[1734535717747,0.5661668,218.18,218.16,13.86242926]
[1734535717947,0.5661668,218.18,218.14,13.86242926]
[1734535718460,13.86242926,218.16,218.09,13.86242926]
[1734535718675,14.42859606,218.18,218.11,13.86242926]
[1734535718855,0.5661668,218.18,218.12,13.86242926]
[1734535720478,0.5661668,218.18,218.13,13.86242926]
[1734535720656,14.42859606,218.18,218.11,13.86242926]
[1734535720975,13.86242926,218.16,218.09,13.86242926]
[1734535721178,13.86242926,218.17,218.1,13.86242926]
[1734535721493,13.86242926,218.15,218.08,13.86242926]
[1734535721778,13.86242926,218.14,218.06,13.86242926]
[1734535722252,13.86242926,218.08,218.01,13.86242926]
[1734535722452,13.86242926,218.08,218.0,13.86242926]
[1734535723157,13.86242926,218.08,218.01,13.86242926]
[1734535723357,13.86242926,218.09,218.02,13.86242926]
[1734535723960,13.86242926,218.09,217.96,2.20745888]
[1734535723961,13.86242926,218.08,218.01,13.86242926]
[1734535724160,13.86242926,218.09,218.02,13.86242926]
[1734535724468,13.86242926,218.07,217.99,13.86242926]
[1734535725177,13.86242926,218.09,218.02,13.86242926]
[1734535725680,13.86242926,218.08,218.01,13.86242926]
[1734535726082,15.00872926,218.1,218.02,13.86242926]
[1734535726680,13.86242926,218.1,218.03,13.86242926]
[1734535726872,29.26242926,218.11,218.03,13.86242926]
[1734535727058,13.86242926,218.09,218.01,13.86242926]
[1734535727260,13.86242926,218.07,217.99,13.86242926]
[1734535727469,16.5462,218.11,217.98,13.86242926]
[1734535727470,13.86242926,218.05,217.98,13.86242926]
[1734535727678,13.86242926,218.04,217.97,13.86242926]
[1734535728458,13.86242926,218.02,217.95,13.86242926]
[1734535728686,13.86242926,218.01,217.94,13.86242926]
[1734535729361,13.86242926,218.0,217.93,13.86242926]
[1734535730400,13.86242926,218.01,217.94,13.86242926]
[1734535731362,13.86242926,218.0,217.92,13.86242926]
[1734535732083,13.86242926,218.0,217.93,13.86242926]
[1734535732468,13.86242926,218.0,217.92,13.86242926]
[1734535732662,22.09412926,218.02,217.94,13.86242926]
[1734535732857,13.86242926,217.99,217.92,13.86242926]
[1734535733061,13.86242926,217.97,217.9,13.86242926]
[1734535733257,13.86242926,217.95,217.88,13.86242926]
[1734535733675,13.86242926,217.96,217.89,13.86242926]
[1734535733881,13.86242926,217.97,217.9,13.86242926]
[1734535734186,15.4,217.99,217.85,0.12549]
[1734535734187,13.86242926,217.99,217.92,13.86242926]
[1734535734389,15.00912926,218.01,217.93,13.86242926]
[1734535734684,13.86242926,218.0,217.93,13.86242926]
[1734535734898,13.86242926,217.98,217.9,13.86242926]
[1734535735117,13.86242926,217.99,217.92,13.86242926]
[1734535735292,13.86242926,218.0,217.93,13.86242926]
[1734535735785,13.86242926,217.99,217.92,13.86242926]
[1734535735982,15.4,218.01,217.95,13.86242926]
[1734535736194,13.86242926,218.0,217.93,13.86242926]
[1734535736984,13.86242926,218.0,217.92,13.86242926]
[1734535737204,29.26242926,218.01,217.93,13.86242926]
[1734535737419,13.86242926,217.99,217.92,13.86242926]
[1734535739006,15.00912926,218.0,217.93,13.86242926]
[1734535739303,1.1467,218.0,217.93,13.86242926]
[1734535739711,15.00912926,218.0,217.93,13.86242926]
[1734535740002,15.4,218.01,217.95,13.86242926]
[1734535740305,13.86242926,217.99,217.92,13.86242926]
[1734535740804,13.86242926,217.97,217.9,13.86242926]
[1734535741004,13.86242926,217.97,217.84,6.1016]
[1734535741005,13.86242926,217.94,217.86,13.86242926]
[1734535741190,13.86242926,217.91,217.83,13.86242926]
[1734535741393,13.86242926,217.89,217.82,13.86242926]
[1734535741706,13.86242926,217.91,217.84,13.86242926]
[1734535741889,13.86242926,217.93,217.85,13.86242926]
[1734535742082,29.26242926,217.96,217.88,13.86242926]
[1734535742428,13.86242926,217.99,217.91,13.86242926]
[1734535742875,15.4,217.97,217.9,13.86242926]
[1734535743077,13.86242926,217.96,217.88,13.86242926]
[1734535743385,13.86242926,217.95,217.88,13.86242926]
[1734535743582,13.86242926,217.93,217.85,13.86242926]
[1734535743798,13.86242926,217.9,217.83,13.86242926]
[1734535744695,13.86242926,217.89,217.81,13.86242926]
[1734535744893,13.86242926,217.89,217.82,13.86242926]
[1734535745194,13.86242926,217.89,217.76,2.2223715]
[1734535745195,13.86242926,217.86,217.79,13.86242926]
[1734535745402,22.71142926,217.91,217.78,13.86242926]
[1734535745403,13.86242926,217.85,217.78,13.86242926]
[1734535745602,13.86242926,217.86,217.79,13.86242926]
[1734535746601,20.0,217.87,217.81,13.86242926]
[1734535746797,15.4,217.9,217.84,13.86242926]
[1734535747110,13.86242926,217.89,217.82,13.86242926]
[1734535747310,43.86242926,218.02,217.77,23.902374]
[1734535747311,15.4,217.98,217.85,20.0]
[1734535747502,15.4,217.98,217.91,13.86242926]
[1734535747706,29.26242926,217.98,217.91,13.86242926]
[1734535748007,29.26242926,217.99,217.92,13.86242926]
[1734535748212,7.6605,218.0,217.93,13.86242926]
[1734535748382,29.26242926,218.01,217.94,13.86242926]
[1734535748582,13.86242926,218.02,217.94,13.86242926]
[1734535748782,13.86242926,218.0,217.92,13.86242926]
[1734535748989,13.86242926,218.01,217.94,13.86242926]
[1734535750101,13.86242926,218.01,217.93,13.86242926]
[1734535750305,13.86242926,218.0,217.92,13.86242926]
[1734535750605,13.86242926,218.01,217.94,13.86242926]
[1734535750992,13.86242926,217.99,217.92,13.86242926]
[1734535751198,13.86242926,217.98,217.9,13.86242926]
[1734535751399,13.86242926,217.98,217.91,13.86242926]
[1734535751590,13.86242926,217.99,217.91,13.86242926]
[1734535751810,13.86242926,217.99,217.92,13.86242926]
[1734535752314,13.86242926,217.97,217.9,13.86242926]
[1734535752689,13.86242926,217.98,217.9,13.86242926]
[1734535752890,13.86242926,217.97,217.9,13.86242926]
[1734535753101,13.86242926,217.95,217.88,13.86242926]
[1734535753839,13.86242926,217.96,217.88,13.86242926]
[1734535754019,15.4,217.95,217.88,13.86242926]
[1734535754196,15.4,217.95,217.89,13.86242926]
[1734535754397,15.4,217.96,217.89,13.86242926]
[1734535754605,13.86242926,217.95,217.88,13.86242926]
[1734535755099,13.86242926,217.91,217.84,13.86242926]
[1734535755299,15.4,217.9,217.76,1.5632]
[1734535755509,13.86242926,217.88,217.81,13.86242926]
[1734535755819,29.26242926,217.89,217.81,13.86242926]
[1734535756010,29.26242926,217.89,217.82,13.86242926]
[1734535756319,15.4,217.89,217.83,13.98791926]
[1734535756517,13.86242926,217.9,217.83,13.98791926]
[1734535758021,29.26242926,217.91,217.84,13.86242926]
[1734535758939,29.26242926,217.93,217.86,13.86242926]
[1734535759303,15.4,217.93,217.87,13.86242926]
[1734535759533,15.4,217.93,217.88,13.86242926]
[1734535759838,29.26242926,217.94,217.87,13.86242926]
[1734535760134,15.4,217.94,217.88,13.86242926]
[1734535760301,13.86242926,217.96,217.88,13.86242926]
[1734535760500,13.86242926,217.96,217.89,13.86242926]
[1734535761195,15.4,217.96,217.9,13.86242926]
[1734535761392,13.86242926,217.94,217.87,13.86242926]
[1734535761805,13.86242926,217.93,217.85,13.86242926]
[1734535764431,15.4,217.92,217.85,13.86242926]
[1734535766039,15.4,217.92,217.86,13.86242926]
[1734535766605,15.4,217.92,217.88,13.86242926]
[1734535766832,15.4,217.92,217.83,0.68842348]
[1734535766833,15.4,217.92,217.9,13.86242926]
[1734535768515,15.4,218.0,217.92,0.12549]
[1734535768718,13.86242926,218.01,217.93,13.86242926]
[1734535768921,13.86242926,218.0,217.93,13.86242926]
[1734535769323,1.508,218.06,217.99,13.86242926]
[1734535769519,13.86242926,218.08,217.99,13.86242926]
[1734535769718,13.86242926,218.06,217.98,13.86242926]
[1734535769909,29.26242926,218.05,217.97,13.86242926]
[1734535773429,15.4,218.04,217.97,13.86242926]
[1734535774347,15.4,218.04,217.98,13.86242926]
[1734535774530,15.4,218.04,217.97,13.86242926]
[1734535775117,29.26242926,218.04,217.97,13.86242926]
[1734535775319,13.86242926,218.02,217.95,13.86242926]
[1734535775518,13.86242926,218.01,217.93,13.86242926]
[1734535775813,29.26242926,218.02,217.95,13.86242926]
[1734535776122,29.26242926,218.02,217.88,12.16218465]
[1734535776123,13.86242926,218.01,217.94,13.86242926]
[1734535776314,15.4,218.02,217.96,13.86242926]
[1734535776519,29.26242926,218.02,217.95,13.86242926]
[1734535776738,15.4,218.02,217.96,13.86242926]
[1734535776939,29.26242926,218.02,217.95,13.86242926]
[1734535778845,13.86242926,218.01,217.94,13.86242926]
[1734535779447,29.26242926,218.01,217.94,13.86242926]
[1734535779947,15.4,218.0,217.9,13.86242926]
[1734535780248,29.26242926,217.96,217.89,13.86242926]
[1734535780450,29.26242926,217.96,217.9,13.86242926]
[1734535780830,15.4,217.96,217.9,13.86242926]
[1734535782646,29.26242926,217.96,217.89,13.86242926]
[1734535783235,13.86242926,217.9,217.8,1.6605]
[1734535783441,29.26242926,217.83,217.76,20.87593381]
[1734535783713,30.083384,217.89,217.76,20.87593381]
[1734535783714,37.63931326,217.77,217.76,7.01350455]
[1734535784244,13.86242926,217.78,217.76,7.01350455]
[1734535784427,15.4,217.8,217.72,13.86242926]
[1734535784747,29.26242926,217.79,217.72,13.86242926]
[1734535784947,13.86242926,217.78,217.71,13.86242926]
[1734535785749,29.26242926,217.79,217.71,13.86242926]
[1734535786422,13.86242926,217.78,217.71,13.86242926]
[1734535789564,13.86242926,217.79,217.71,13.86242926]
[1734535789745,13.86242926,217.78,217.71,13.86242926]
[1734535789947,13.86242926,217.78,217.71,0.12549]
[1734535790345,13.86242926,217.78,217.71,13.98791926]
[1734535790551,13.86242926,217.77,217.7,13.98791926]
[1734535790734,13.86242926,217.78,217.71,13.86242926]
[1734535793562,13.86242926,217.79,217.72,13.86242926]
[1734535795863,29.26242926,217.8,217.73,13.86242926]
[1734535796053,15.01012926,217.82,217.75,13.86242926]
[1734535796538,13.86242926,217.81,217.74,13.86242926]
[1734535797065,15.01012926,217.82,217.75,13.86242926]
[1734535797741,13.86242926,217.79,217.72,13.86242926]
[1734535798562,29.26242926,217.81,217.74,13.86242926]
[1734535800062,13.86242926,217.83,217.76,13.86242926]
[1734535800264,15.4,217.84,217.75,0.12549]
[1734535800265,15.4,217.84,217.79,13.86242926]
[1734535800570,29.26242926,217.83,217.76,13.86242926]